fUSD/lending_fUSD_20260628
["ID","MTS","AMOUNT","RATE_DAILY","PERIOD"]
[426582729,1782630642000,-209.80853093,0.00026,2]
[426582719,1782630642000,-192.94647314,0.00025848,2]
[426582716,1782630642000,-349.57977648,0.00025848,2]
[426582715,1782630642000,-311.95789117,0.00025848,2]
[426582722,1782630642000,-467.2345791,0.00025848,2]
[426582725,1782630642000,-600.0,0.000259,9]
[426582723,1782630642000,-367.30789933,0.00025849,2]
[426582727,1782630642000,-5438.4017429,0.000259,2]
[426582718,1782630642000,-232.46174289,0.00025848,2]
[426582724,1782630642000,-375.35870335,0.0002585,2]
[426582720,1782630642000,-650.94023841,0.00025848,2]
[426582709,1782630642000,-445.03764905,0.00025836,2]
[426582713,1782630642000,-615.44172202,0.00025848,2]
[426582714,1782630642000,-619.69404399,0.00025848,2]
[426582711,1782630642000,-385.05788546,0.00025848,2]
[426582712,1782630642000,-352.2626372,0.00025848,2]
[426582706,1782630642000,-444.86938071,0.00025836,2]
[426582704,1782630642000,-520.22212402,0.00025836,2]
[426582707,1782630642000,-457.87934013,0.00025836,2]
[426582708,1782630642000,-373.58289278,0.00025836,2]
[426582705,1782630642000,-559.35850966,0.00025836,2]
[426582710,1782630642000,-445.4550578,0.00025836,2]
[426582726,1782630642000,-1789.8621706,0.000259,2]
[426582717,1782630642000,-163.91611446,0.00025848,2]
[426582728,1782630642000,-409.46955557,0.00026,2]
[426582721,1782630642000,-238.17690663,0.00025848,2]
[426582731,1782630642000,-182.61,0.00026027,7]
[426582732,1782630642000,-196.58,0.00026027,7]
[426582750,1782630642000,-811.39938049,0.00026396,2]
[426582757,1782630642000,-166.01204643,0.00026396,2]
[426582755,1782630642000,-470.72012571,0.00026396,2]
[426582756,1782630642000,-352.5984445,0.00026396,2]
[426582754,1782630642000,-184.64645499,0.00026396,2]
[426582753,1782630642000,-222.76751945,0.00026396,2]
[426582748,1782630642000,-428.20125763,0.00026396,2]
[426582747,1782630642000,-587.89666619,0.00026392,2]
[426582743,1782630642000,-503.05367106,0.00026392,2]
[426582744,1782630642000,-405.73526388,0.00026392,2]
[426582741,1782630642000,-732.27156133,0.00026392,2]
[426582749,1782630642000,-312.25007279,0.00026396,2]
[426582746,1782630642000,-571.1406931,0.00026392,2]
[426582742,1782630642000,-788.96559232,0.00026392,2]
[426582745,1782630642000,-650.47326746,0.00026392,2]
[426582738,1782630642000,-372.29864758,0.00026392,2]
[426582733,1782630642000,-409.46955557,0.000262,2]
[426582739,1782630642000,-204.55564159,0.00026392,2]
[426582737,1782630642000,-423.81,0.00026316,7]
[426582736,1782630642000,-5438.4017429,0.000262,2]
[426582734,1782630642000,-209.80853093,0.000262,2]
[426582735,1782630642000,-1789.8621706,0.000262,2]
[426582730,1782630642000,-2000.0,0.00026,7]
[426582740,1782630642000,-616.86643568,0.00026392,2]
[426582872,1782630643000,-173.884281,0.00027397,2]
[426582875,1782630643000,-227.54100422,0.00027397,2]
[426582869,1782630643000,-173.884281,0.00027397,2]
[426582870,1782630643000,-173.884281,0.00027397,2]
[426582860,1782630643000,-191.89,0.00027397,2]
[426582868,1782630643000,-173.884281,0.00027397,2]
[426582867,1782630643000,-173.884281,0.00027397,2]
[426582863,1782630643000,-173.884281,0.00027397,2]
[426582854,1782630643000,-4202.43124681,0.0002739,2]
[426582871,1782630643000,-173.884281,0.00027397,2]
[426582866,1782630643000,-173.884281,0.00027397,2]
[426582873,1782630643000,-539.34,0.00027397,10]
[426582887,1782630643000,-1497.76468339,0.00027757,2]
[426582874,1782630643000,-449.45,0.00027397,10]
[426582878,1782630643000,-196.95752218,0.00027397,7]
[426582877,1782630643000,-629.20186636,0.00027397,2]
[426582879,1782630643000,-157.30046659,0.00027397,2]
[426582882,1782630643000,-429.91,0.000274,7]
[426582880,1782630643000,-314.60093318,0.00027397,2]
[426582883,1782630643000,-205.5101132,0.000275,2]
[426582884,1782630643000,-500.0,0.000275,7]
[426582885,1782630643000,-5438.4017429,0.000275,2]
[426582886,1782630643000,-2932.8552,0.00027745,14]
[426582859,1782630643000,-8301.13170016,0.0002739,2]
[426582889,1782630643000,-1001.32651891,0.00027797,2]
[426582876,1782630643000,-471.90139977,0.00027397,2]
[426582862,1782630643000,-173.884281,0.00027397,2]
[426582839,1782630643000,-763.13223355,0.00026956,2]
[426582864,1782630643000,-173.884281,0.00027397,2]
[426582888,1782630643000,-925.29965352,0.00027792,2]
[426582825,1782630643000,-151.0,0.000268,2]
[426582831,1782630643000,-771.0830446,0.00026952,2]
[426582828,1782630643000,-500.0,0.00026906,30]
[426582829,1782630643000,-500.0,0.00026906,30]
[426582826,1782630643000,-600.0,0.000269,9]
[426582827,1782630643000,-500.0,0.00026906,30]
[426582824,1782630643000,-154.69729,0.000268,2]
[426582830,1782630643000,-971.402,0.00026906,30]
[426582832,1782630643000,-915.33945166,0.00026952,2]
[426582833,1782630643000,-834.43876576,0.00026956,2]
[426582835,1782630643000,-800.35782577,0.00026956,2]
[426582838,1782630643000,-867.03687337,0.00026956,2]
[426582836,1782630643000,-856.08773988,0.00026956,2]
[426582837,1782630643000,-862.88020442,0.00026956,2]
[426582840,1782630643000,-1032.82340665,0.00026969,2]
[426582841,1782630643000,-5438.4017429,0.00027,2]
[426582842,1782630643000,-440.240762,0.0002709,2]
[426582844,1782630643000,-500.0,0.0002718,30]
[426582843,1782630643000,-160.24,0.00027123,7]
[426582845,1782630643000,-500.0,0.0002718,30]
[426582846,1782630643000,-500.0,0.0002718,30]
[426582849,1782630643000,-632.0,0.0002718,30]
[426582853,1782630643000,-5438.4017429,0.000272,2]
[426582861,1782630643000,-173.884281,0.00027397,2]
[426582865,1782630643000,-173.884281,0.00027397,2]
[426582891,1782630643000,-1035.45624531,0.00027797,2]
[426582881,1782630643000,-772.27,0.000274,7]
[426582894,1782630643000,-298.5,0.00027861,30]
[426582927,1782630643000,-5338.19213494,0.00029,2]
[426582928,1782630643000,-429.91,0.00029,7]
[426582929,1782630643000,-20833.91118305,0.00029,2]
[426582932,1782630643000,-21848.34627574,0.00029,2]
[426582930,1782630643000,-10382.44625727,0.00029,2]
[426582933,1782630643000,-451.20785105,0.00029,2]
[426582934,1782630643000,-220.48113941,0.00029,2]
[426582931,1782630643000,-1004.4210907,0.00029,2]
[426582935,1782630643000,-1182.0,0.00029,2]
[426582937,1782630643000,-151.4268351,0.00029052,10]
[426582940,1782630643000,-1198.52283583,0.00029058,2]
[426582938,1782630643000,-464.92284466,0.00029054,7]
[426582920,1782630643000,-163.0,0.00028684,30]
[426582939,1782630643000,-1270.48923173,0.00029058,2]
[426582943,1782630643000,-17243.0,0.0002912,20]
[426582947,1782630643000,-372.0,0.0002948,2]
[426582946,1782630643000,-423.81,0.00029473,7]
[426582944,1782630643000,-200.98,0.00029128,7]
[426582952,1782630643000,-3650.0,0.00029555,2]
[426582951,1782630643000,-163.25567929,0.00029552,2]
[426582945,1782630643000,-501.78954076,0.00029443,60]
[426582948,1782630643000,-1277.0,0.0002948,2]
[426582950,1782630643000,-375.35870335,0.000295,2]
[426582949,1782630643000,-1361.0,0.0002948,2]
[426582954,1782630643000,-205.0,0.00029675,30]
[426582890,1782630643000,-1027.30528785,0.00027797,2]
[426582941,1782630643000,-1208.03228619,0.00029058,2]
[426582922,1782630643000,-157.0,0.00028684,30]
[426582942,1782630643000,-1068.38512697,0.00029058,2]
[426582923,1782630643000,-217.0,0.00028684,30]
[426582924,1782630643000,-772.27,0.000287,7]
[426582892,1782630643000,-915.75868026,0.00027797,2]
[426582893,1782630643000,-5438.4017429,0.000278,2]
[426582896,1782630643000,-786.50233295,0.00027958,2]
[426582895,1782630643000,-423.81,0.00027895,7]
[426582898,1782630643000,-160.0,0.00028,2]
[426582897,1782630643000,-1487.0,0.00027985,5]
[426582899,1782630643000,-643.0,0.00028,2]
[426582903,1782630643000,-2000.0,0.00028,7]
[426582953,1782630643000,-157.36326576,0.00029576,2]
[426582904,1782630643000,-5438.4017429,0.000281,2]
[426582908,1782630643000,-488.08,0.00028592,2]
[426582910,1782630643000,-153.0,0.00028675,30]
[426582901,1782630643000,-22500.0,0.00028,2]
[426582906,1782630643000,-485.83413704,0.00028591,30]
[426582918,1782630643000,-162.0,0.00028684,30]
[426582921,1782630643000,-486.0,0.00028684,30]
[426582926,1782630643000,-9260.76826344,0.00029,2]
[426582916,1782630643000,-414.0,0.00028684,30]
[426582914,1782630643000,-152.0,0.00028684,30]
[426582913,1782630643000,-211.0,0.00028684,30]
[426582925,1782630643000,-4960.9915,0.00028952,2]
[426582905,1782630643000,-18365.55,0.00028364,7]
[426582911,1782630643000,-679.0,0.00028684,30]
[426582909,1782630643000,-205.0,0.00028675,30]
[426582907,1782630643000,-249.93096909,0.00028592,2]
[426582912,1782630643000,-492.0,0.00028684,30]
[426582970,1782630644000,-80565.21042707,0.000299,2]
[426582977,1782630644000,-1500.0,0.00029988,2]
[426582971,1782630644000,-1497.76468339,0.000299,2]
[426582969,1782630644000,-500.0,0.00029866,19]
[426582975,1782630644000,-1500.0,0.00029988,2]
[426582978,1782630644000,-1500.0,0.00029988,2]
[426582983,1782630644000,-1500.0,0.00029988,2]
[426582980,1782630644000,-1500.0,0.00029988,2]
[426582979,1782630644000,-1500.0,0.00029988,2]
[426582981,1782630644000,-1500.0,0.00029988,2]
[426582988,1782630644000,-185.46686237,0.0002999,2]
[426582974,1782630644000,-500.0,0.00029988,2]
[426582976,1782630644000,-2547.07322761,0.00029988,2]
[426582972,1782630644000,-93993.14520866,0.000299,2]
[426582959,1782630644000,-152.0,0.00029684,30]
[426582973,1782630644000,-174.3991004,0.00029988,2]
[426582967,1782630644000,-174.74688955,0.00029688,7]
[426582968,1782630644000,-197.18852701,0.000298,2]
[426582965,1782630644000,-157.0,0.00029684,30]
[426582964,1782630644000,-486.0,0.00029684,30]
[426582963,1782630644000,-163.0,0.00029684,30]
[426582961,1782630644000,-160.24,0.00029684,7]
[426582957,1782630644000,-492.0,0.00029684,30]
[426582955,1782630644000,-153.0,0.00029675,30]
[426582958,1782630644000,-211.0,0.00029684,30]
[426582956,1782630644000,-679.0,0.00029684,30]
[426582960,1782630644000,-414.0,0.00029684,30]
[426582962,1782630644000,-162.0,0.00029684,30]
[426582985,1782630644000,-1500.0,0.00029988,2]
[426582966,1782630644000,-217.0,0.00029684,30]
[426582982,1782630644000,-1500.0,0.00029988,2]
[426582989,1782630644000,-185.46686237,0.0002999,2]
[426582987,1782630644000,-242.49776427,0.0002999,2]
[426583017,1782630644000,-2816.49288951,0.000301,7]
[426583015,1782630644000,-14111.36532356,0.000301,7]
[426583013,1782630644000,-353.30239913,0.000301,7]
[426583014,1782630644000,-258.08442567,0.000301,7]
[426583009,1782630644000,-3085.18551449,0.000301,7]
[426583008,1782630644000,-313.2620278,0.000301,7]
[426583005,1782630644000,-17243.0,0.0003008,20]
[426583006,1782630644000,-772.27,0.000301,7]
[426583010,1782630644000,-22938.01079164,0.000301,7]
[426583011,1782630644000,-378.80780789,0.000301,7]
[426583007,1782630644000,-82145.1082714,0.000301,7]
[426583004,1782630644000,-2000.0,0.0003,7]
[426583003,1782630644000,-190.76725721,0.0003,2]
[426583002,1782630644000,-5069.02862504,0.0003,2]
[426583012,1782630644000,-423.33620391,0.000301,7]
[426582999,1782630644000,-166.78212043,0.0003,2]
[426583016,1782630644000,-845.40679974,0.000301,7]
[426582998,1782630644000,-1000.0,0.0003,2]
[426582990,1782630644000,-304.94,0.0003,2]
[426582992,1782630644000,-278.32836216,0.0003,2]
[426582991,1782630644000,-275.97330948,0.0003,2]
[426582993,1782630644000,-20335.72116223,0.0003,2]
[426582986,1782630644000,-1351.3747258,0.00029988,2]
[426582994,1782630644000,-1117.27963732,0.0003,2]
[426582995,1782630644000,-10385.94496012,0.0003,2]
[426583000,1782630644000,-14619.4117846,0.0003,2]
[426583001,1782630644000,-95150.0,0.0003,5]
[426582984,1782630644000,-1500.0,0.00029988,2]
[426582997,1782630644000,-1859.66618216,0.0003,2]
[426582996,1782630644000,-1129.45462786,0.0003,2]
[426583022,1782630646000,-1384.94124111,0.000301,7]
[426583021,1782630646000,-156.45618948,0.00026431,2]
[426583019,1782630646000,-1187.05600419,0.00017206,2]
[426583020,1782630646000,-6916.21947405,0.00017206,2]
[426583025,1782630647000,-216.0,0.00029555,2]
[426583026,1782630647000,-988.10719637,0.000301,7]
[426583029,1782630647000,-8441.72745213,0.000301,7]
[426583028,1782630647000,-350.625,0.000301,7]
[426583023,1782630647000,-167.15,0.00026888,2]
[426583031,1782630761000,214.02566517,0.00013257,7]
[426583032,1782630933000,-153.0,0.0001316,2]
[426583034,1782630938000,500.0,0.00030099,120]
[426583033,1782630938000,500.0,0.00029514,120]
[426583037,1782630987000,-152.0,0.0001316,2]
[426583046,1782631040000,-151.0,0.0001316,2]
[426583056,1782631093000,-311.58,0.0001237,2]
[426583060,1782631095000,301.59,0.00011999,2]
[426583059,1782631095000,301.59,0.00011876,2]
[426583058,1782631095000,301.59,0.00011752,2]
[426583057,1782631095000,301.59,0.00011628,2]
[426583062,1782631096000,301.59,0.00012247,2]
[426583061,1782631096000,301.59,0.00012123,2]
[426583064,1782631132000,405.89205777,0.00029514,120]
[426583065,1782631147000,-301.59,0.0001237,2]
[426583066,1782631166000,277.97,0.00037332,120]
[426583067,1782631182000,500.0,0.00029514,120]
[426583068,1782631183000,391.57059087,0.00030099,120]
[426583069,1782631200000,-301.59,0.00012494,2]
[426583070,1782631253000,-151.0,0.00012439,2]
[426583071,1782631307000,-226.20947106,0.00012535,2]
[426583072,1782631360000,-189.51771595,0.00012535,2]
[426583073,1782631413000,-930.2374958,0.00012476,2]
[426583075,1782631544000,500.0,0.00030099,120]
[426583074,1782631544000,500.0,0.00029514,120]
[426583076,1782631557000,-150.0,0.00012556,2]
[426583092,1782631557000,-150.0,0.0001316,2]
[426583093,1782631557000,-151.0,0.0001316,2]
[426583088,1782631557000,-200.0,0.00013088,2]
[426583086,1782631557000,-150.0,0.00012977,2]
[426583087,1782631557000,-301.59,0.00012989,2]
[426583090,1782631557000,-150.0,0.00013159,2]
[426583091,1782631557000,-153.0,0.0001316,2]
[426583084,1782631557000,-150.0,0.00012851,2]
[426583085,1782631557000,-301.59,0.00012865,2]
[426583083,1782631557000,-555.90086711,0.00012762,2]
[426583078,1782631557000,-301.59,0.00012618,2]
[426583080,1782631557000,-150.0,0.00012725,2]
[426583081,1782631557000,-160.0,0.00012725,2]
[426583079,1782631557000,-250.0,0.00012676,2]
[426583077,1782631557000,-250.0,0.00012576,2]
[426583082,1782631557000,-301.59,0.00012742,2]
[426583097,1782631557000,-150.0,0.0001316,2]
[426583089,1782631557000,-150.0,0.00013103,2]
[426583094,1782631557000,-151.0,0.0001316,2]
[426583113,1782631557000,-301.59,0.0001323,2]
[426583114,1782631557000,-708.79246606,0.00013231,2]
[426583112,1782631557000,-150.0,0.00013229,2]
[426583108,1782631557000,-153.0,0.0001316,2]
[426583110,1782631557000,-301.59,0.0001316,2]
[426583109,1782631557000,-151.0,0.0001316,2]
[426583111,1782631557000,-301.59,0.00013195,2]
[426583107,1782631557000,-150.0,0.0001316,2]
[426583106,1782631557000,-152.0,0.0001316,2]
[426583096,1782631557000,-150.0,0.0001316,2]
[426583103,1782631557000,-152.0,0.0001316,2]
[426583104,1782631557000,-152.0,0.0001316,2]
[426583101,1782631557000,-151.0,0.0001316,2]
[426583099,1782631557000,-202.70776136,0.0001316,2]
[426583100,1782631557000,-152.0,0.0001316,2]
[426583102,1782631557000,-150.0,0.0001316,2]
[426583095,1782631557000,-153.0,0.0001316,2]
[426583098,1782631557000,-153.0,0.0001316,2]
[426583105,1782631557000,-150.0,0.0001316,2]
[426583115,1782631558000,-301.59,0.00013265,2]
[426583118,1782631558000,-150.0,0.00013355,2]
[426583117,1782631558000,-301.59,0.00013335,2]
[426583119,1782631558000,-301.59,0.0001337,2]
[426583122,1782631558000,-301.59,0.00013475,2]
[426583124,1782631558000,-249.0,0.00013481,2]
[426583123,1782631558000,-500.0,0.00013475,2]
[426583116,1782631558000,-301.59,0.000133,2]
[426583121,1782631558000,-301.59,0.0001344,2]
[426583127,1782631558000,-301.59,0.0001358,2]
[426583128,1782631558000,-301.59,0.00013615,2]
[426583125,1782631558000,-301.59,0.0001351,2]
[426583126,1782631558000,-301.59,0.00013545,2]
[426583120,1782631558000,-301.59,0.00013405,2]
[426583129,1782631558000,-180.02,0.0001365,2]
[426583130,1782631558000,-252.63398922,0.0001365,2]
[426583131,1782631634000,-300.0,0.00013174,2]
[426583133,1782631634000,-404.57878696,0.00013175,2]
[426583135,1782631634000,-173.77253875,0.00013175,2]
[426583134,1782631634000,-500.0,0.00013175,2]
[426583136,1782631634000,-154.08941214,0.00013175,2]
[426583132,1782631634000,-1000.0,0.00013175,2]
[426583145,1782631636000,-500.0,0.00013175,2]
[426583150,1782631636000,-453.29171647,0.00013175,2]
[426583147,1782631636000,-500.0,0.00013175,2]
[426583148,1782631636000,-500.0,0.00013175,2]
[426583146,1782631636000,-500.0,0.00013175,2]
[426583144,1782631636000,-204.91291822,0.00013175,2]
[426583140,1782631636000,-500.0,0.00013175,2]
[426583142,1782631636000,-485.96096264,0.00013175,2]
[426583143,1782631636000,-500.0,0.00013175,2]
[426583139,1782631636000,-500.0,0.00013175,2]
[426583138,1782631636000,-500.0,0.00013175,2]
[426583137,1782631636000,-268.12811783,0.00013175,2]
[426583149,1782631636000,-315.96252576,0.00013175,2]
[426583141,1782631636000,-500.0,0.00013175,2]
[426583151,1782631636000,-500.0,0.00013175,2]
[426583154,1782631636000,-500.0,0.00013175,2]
[426583152,1782631636000,-500.0,0.00013175,2]
[426583153,1782631636000,-506.52557089,0.00013175,2]
[426583167,1782631636000,-284.00819487,0.00013175,2]
[426583166,1782631636000,-500.0,0.00013175,2]
[426583165,1782631636000,-187.17960845,0.00013175,2]
[426583164,1782631636000,-500.0,0.00013175,2]
[426583163,1782631636000,-500.0,0.00013175,2]
[426583162,1782631636000,-500.0,0.00013175,2]
[426583160,1782631636000,-500.0,0.00013175,2]
[426583161,1782631636000,-500.0,0.00013175,2]
[426583158,1782631636000,-500.0,0.00013175,2]
[426583159,1782631636000,-500.0,0.00013175,2]
[426583157,1782631636000,-500.0,0.00013175,2]
[426583156,1782631636000,-500.0,0.00013175,2]
[426583155,1782631636000,-500.0,0.00013175,2]
[426583168,1782631646000,2510832.0,0.00037334,120]
[426583170,1782631686000,560.05967227,0.00030099,120]
[426583169,1782631686000,500.0,0.00029514,120]
[426583171,1782631717000,500.0,0.00029514,120]
[426583173,1782631745000,-153.0,0.00013174,2]
[426583172,1782631745000,-152.0,0.00013174,2]
[426583174,1782631745000,-150.0,0.00013174,2]
[426583175,1782631745000,-150.0,0.00013174,2]
[426583176,1782631745000,-152.0,0.00013174,2]
[426583177,1782631745000,-153.0,0.00013174,2]
[426583178,1782631745000,-150.0,0.00013174,2]
[426583181,1782631745000,-160.0,0.00013175,2]
[426583179,1782631745000,-151.0,0.00013174,2]
[426583182,1782631745000,-151.0,0.00013175,2]
[426583183,1782631745000,-150.0,0.00013175,2]
[426583184,1782631745000,-151.0,0.00013175,2]
[426583185,1782631745000,-151.0,0.00013175,2]
[426583180,1782631745000,-150.0,0.00013174,2]
[426583186,1782631745000,-58734.91336,0.00013176,2]
[426583187,1782631749000,387.56108305,0.00037338,120]
[426583189,1782631755000,-151.0,0.00013174,2]
[426583190,1782631755000,-39214.91900199,0.00013176,2]
[426583188,1782631755000,-1310.54409801,0.00013076,2]
[426583191,1782631763000,-15420.42936,0.00013176,2]
[426583194,1782631767000,-8913.43173,0.00013176,2]
[426583192,1782631767000,-151.0,0.00013176,2]
[426583193,1782631767000,-50746.72492,0.00013176,2]
[426583196,1782631799000,-2696.35272385,0.00013176,2]
[426583195,1782631799000,-3991.4189998,0.00013176,2]
[426583197,1782631827000,-150.0,0.00013175,2]
[426583221,1782631831000,-500.0,0.00013175,2]
[426583223,1782631831000,-500.0,0.00013175,2]
[426583222,1782631831000,-500.0,0.00013175,2]
[426583213,1782631831000,-500.0,0.00013175,2]
[426583217,1782631831000,-500.0,0.00013175,2]
[426583216,1782631831000,-500.0,0.00013175,2]
[426583214,1782631831000,-500.0,0.00013175,2]
[426583211,1782631831000,-593.43904275,0.00013175,2]
[426583212,1782631831000,-1301.12264038,0.00013175,2]
[426583224,1782631831000,-500.0,0.00013175,2]
[426583210,1782631831000,-500.0,0.00013175,2]
[426583209,1782631831000,-500.0,0.00013175,2]
[426583206,1782631831000,-424.63898139,0.00013175,2]
[426583208,1782631831000,-500.0,0.00013175,2]
[426583207,1782631831000,-75.36101861,0.00013175,2]
[426583215,1782631831000,-500.0,0.00013175,2]
[426583220,1782631831000,-500.0,0.00013175,2]
[426583218,1782631831000,-500.0,0.00013175,2]
[426583225,1782631831000,-500.0,0.00013175,2]
[426583240,1782631831000,-295.55227098,0.00013175,2]
[426583219,1782631831000,-500.0,0.00013175,2]
[426583239,1782631831000,-500.0,0.00013175,2]
[426583241,1782631831000,-500.0,0.00013175,2]
[426583242,1782631831000,-500.0,0.00013175,2]
[426583232,1782631831000,-500.0,0.00013175,2]
[426583227,1782631831000,-500.0,0.00013175,2]
[426583230,1782631831000,-500.0,0.00013175,2]
[426583233,1782631831000,-447.72706153,0.00013175,2]
[426583231,1782631831000,-500.0,0.00013175,2]
[426583226,1782631831000,-500.0,0.00013175,2]
[426583229,1782631831000,-500.0,0.00013175,2]
[426583235,1782631831000,-500.0,0.00013175,2]
[426583238,1782631831000,-500.0,0.00013175,2]
[426583234,1782631831000,-500.0,0.00013175,2]
[426583228,1782631831000,-500.0,0.00013175,2]
[426583237,1782631831000,-500.0,0.00013175,2]
[426583236,1782631831000,-500.0,0.00013175,2]
[426583280,1782631832000,-5737.64,0.00014054,2]
[426583251,1782631832000,-403.22,0.00013176,2]
[426583279,1782631832000,-301.59,0.00014035,2]
[426583273,1782631832000,-301.59,0.0001393,2]
[426583277,1782631832000,-150.0,0.00014,2]
[426583275,1782631832000,-250.0,0.00014,2]
[426583267,1782631832000,-193.0,0.00013811,2]
[426583271,1782631832000,-301.59,0.0001386,2]
[426583285,1782631832000,-350.86,0.00014144,2]
[426583272,1782631832000,-301.59,0.00013895,2]
[426583288,1782631832000,-301.59,0.00014245,2]
[426583289,1782631832000,-301.59,0.0001428,2]
[426583278,1782631832000,-301.59,0.00014,2]
[426583281,1782631832000,-301.59,0.0001407,2]
[426583283,1782631832000,-301.59,0.00014105,2]
[426583284,1782631832000,-301.59,0.0001414,2]
[426583287,1782631832000,-301.59,0.0001421,2]
[426583296,1782631832000,-107301.86,0.00014423,2]
[426583294,1782631832000,-255.96,0.00014403,2]
[426583291,1782631832000,-1566.84,0.00014298,2]
[426583293,1782631832000,-6116.85632792,0.00014349,2]
[426583276,1782631832000,-151.21958932,0.00014,2]
[426583286,1782631832000,-301.59,0.00014175,2]
[426583268,1782631832000,-493.77448496,0.00013811,2]
[426583243,1782631832000,-500.0,0.00013175,2]
[426583265,1782631832000,-251.2,0.00013799,2]
[426583245,1782631832000,-500.0,0.00013175,2]
[426583247,1782631832000,-151.0,0.00013175,2]
[426583244,1782631832000,-500.0,0.00013175,2]
[426583250,1782631832000,-288.089304,0.00013176,2]
[426583246,1782631832000,-440.17267385,0.00013175,2]
[426583249,1782631832000,-211899.08274266,0.00013176,2]
[426583248,1782631832000,-150.0,0.00013176,2]
[426583262,1782631832000,-301.59,0.00013755,2]
[426583259,1782631832000,-13388.08,0.0001372,2]
[426583255,1782631832000,-173.89,0.00013682,2]
[426583263,1782631832000,-600.12,0.00013768,2]
[426583254,1782631832000,-250.0,0.00013666,2]
[426583256,1782631832000,-301.59,0.00013685,2]
[426583261,1782631832000,-200.0,0.00013751,2]
[426583260,1782631832000,-301.59,0.0001372,2]
[426583257,1782631832000,-1852.42,0.00013712,2]
[426583253,1782631832000,-48.95601078,0.0001365,2]
[426583252,1782631832000,-53446.1942216,0.00013224,2]
[426583264,1782631832000,-301.59,0.0001379,2]
[426583297,1782631832000,-1614.91,0.00014466,2]
[426583266,1782631832000,-350.86,0.00013799,2]
[426583274,1782631832000,-301.59,0.00013965,2]
[426583270,1782631832000,-301.59,0.00013825,2]
[426583269,1782631832000,-311.58,0.00013818,2]
[426583290,1782631832000,-255.0,0.00014282,2]
[426583258,1782631832000,-150.0,0.00013716,2]
[426583295,1782631832000,-464.54,0.0001442,2]
[426583323,1782631832000,-6116.85632789,0.00016701,2]
[426583326,1782631832000,-600.12,0.0001721,2]
[426583328,1782631832000,-250.0,0.0001741,2]
[426583339,1782631832000,-313.79467907,0.00019352,2]
[426583334,1782631832000,-190.87932965,0.0001874,2]
[426583340,1782631832000,-722.35,0.00019355,7]
[426583333,1782631832000,-174.99,0.00018598,2]
[426583337,1782631832000,-600.12,0.00018931,2]
[426583341,1782631832000,-1183.06548017,0.00019411,5]
[426583330,1782631832000,-350.0,0.00018,2]
[426583329,1782631832000,-172.72973787,0.00017885,2]
[426583327,1782631832000,-216.0,0.0001726,2]
[426583338,1782631832000,-6116.85632789,0.00019053,2]
[426583335,1782631832000,-300.0,0.000188,6]
[426583336,1782631832000,-600.0,0.000189,6]
[426583332,1782631832000,-379.81,0.00018313,2]
[426583345,1782631832000,-45934.99150746,0.00019412,2]
[426583346,1782631832000,-163313.53587544,0.00019412,2]
[426583343,1782631832000,-50596.43334741,0.00019412,2]
[426583342,1782631832000,-384.96058551,0.00019411,2]
[426583348,1782631832000,-1246.48,0.00019412,2]
[426583347,1782631832000,-1254.41808677,0.00019412,2]
[426583344,1782631832000,-117502.97482356,0.00019412,2]
[426583298,1782631832000,-500.0,0.00014489,2]